bitfinex-derivatives/quotes_SOLF0:USTF0_20260217
["timestamp","ask_amount","ask_price","bid_price","bid_amount"]
[1771359701128,0.12324938,84.836,84.778,3.92881238]
[1771359702828,0.12324938,84.836,84.8,10.619]
[1771359703033,0.12324938,84.836,84.747,74.24]
[1771359703034,0.08792131,84.859,84.799,3.94301384]
[1771359703229,74.24,84.858,84.799,3.94301384]
[1771359703429,74.32792131,84.858,84.799,3.94301384]
[1771359703729,74.24,84.873,84.827,3.94301384]
[1771359704034,246.4599298,84.864,84.801,3.94675497]
[1771359704230,246.4599298,84.864,84.827,10.6156]
[1771359704431,246.4599298,84.864,84.79,21.2405]
[1771359704432,74.24,84.869,84.818,3.94675497]
[1771359704828,74.24,84.869,84.831,10.615]
[1771359705438,0.08043905,84.88,84.831,10.615]
[1771359705639,74.24,84.879,84.842,10.6136]
[1771359706137,74.24,84.879,84.834,10.6147]
[1771359706337,0.08043905,84.88,84.834,10.6147]
[1771359706338,74.24,84.878,84.834,10.6147]
[1771359706539,74.24,84.878,84.833,3.94674772]
[1771359706735,0.19872112,84.898,84.85,10.6127]
[1771359706940,74.24,84.897,84.85,10.6127]
[1771359707441,0.19872112,84.896,84.85,10.6127]
[1771359709640,74.24,84.895,84.85,10.6127]
[1771359710042,74.24,84.895,84.841,10.6138]
[1771359710243,0.20136387,84.894,84.841,10.6138]
[1771359713749,0.20411331,84.89,84.841,10.6138]
[1771359715550,0.20402284,84.886,84.841,10.6138]
[1771359715750,0.20402284,84.886,84.833,3.94674772]
[1771359715751,0.20402284,84.884,84.818,3.88132184]
[1771359716048,0.22276948,84.883,84.818,3.88132184]
[1771359716245,0.22276948,84.902,84.847,3.87194852]
[1771359716446,74.24,84.901,84.847,3.87194852]
[1771359716848,0.22276948,84.9,84.847,3.87194852]
[1771359717245,0.22276948,84.915,84.847,3.87194852]
[1771359717451,21.2013,84.947,84.872,3.87194852]
[1771359717452,74.24,84.914,84.872,3.87194852]
[1771359717642,74.24,84.913,84.872,3.87194852]
[1771359717848,74.24,84.913,84.888,10.608]
[1771359718050,74.24,84.923,84.872,3.87194852]
[1771359718248,5.97999464,84.94,84.872,3.87194852]
[1771359718447,5.97999464,84.96,84.908,3.86517826]
[1771359718642,74.24,84.947,84.908,3.86517826]
[1771359719147,5.97999464,84.96,84.908,3.86517826]
[1771359719452,74.24,84.947,84.908,3.86517826]
[1771359719753,74.24,84.956,84.908,3.86517826]
[1771359719959,74.26,84.962,84.911,3.86609681]
[1771359720251,74.26,84.963,84.911,3.86609681]
[1771359720443,74.24,84.962,84.911,3.86609681]
[1771359720845,74.24,84.962,84.915,10.6046]
[1771359721351,74.24,84.962,84.911,3.86609681]
[1771359721352,0.23447291,84.961,84.894,3.86609681]
[1771359721545,0.23447291,84.949,84.894,3.86609681]
[1771359721746,74.24,84.948,84.894,3.86609681]
[1771359722342,0.18979804,84.946,84.894,3.86609681]
[1771359723445,74.22,84.945,84.894,3.86609681]
[1771359723649,74.22,84.944,84.894,3.86609681]
[1771359723845,74.22,84.943,84.894,3.86609681]
[1771359724353,74.22,84.942,84.894,3.86609681]
[1771359724750,74.22,84.942,84.896,3.88866914]
[1771359726356,0.17966085,84.94,84.883,3.89350284]
[1771359726854,0.17966085,84.94,84.892,3.89350284]
[1771359727042,74.22,84.939,84.892,3.89350284]
[1771359727647,0.17966085,84.929,84.861,3.89350284]
[1771359728058,10.78256085,84.929,84.877,10.6093]
[1771359728254,0.18746009,84.928,84.877,10.6093]
[1771359728649,74.22,84.927,84.877,10.6093]
[1771359728857,74.22,84.927,84.877,14.49890322]
[1771359729160,0.18746009,84.928,84.877,14.49890322]
[1771359729351,74.22,84.927,84.877,14.49890322]
[1771359730048,0.18770311,84.925,84.868,10.6104]
[1771359730247,0.18770311,84.923,84.861,3.88948171]
[1771359730646,0.18770311,84.923,84.868,10.6104]
[1771359731356,74.22,84.922,84.868,10.6104]
[1771359732259,0.24275351,84.921,84.868,10.6104]
[1771359732449,0.24275351,84.909,84.859,10.6116]
[1771359733449,10.6057,84.907,84.859,10.6116]
[1771359733650,0.24275351,84.905,84.849,10.6128]
[1771359733857,6.19714429,84.9,84.849,10.6128]
[1771359734049,0.24452163,84.899,84.849,10.6128]
[1771359734246,10.6069,84.897,84.849,10.6128]
[1771359734455,0.24398572,84.896,84.849,10.6128]
[1771359734653,74.22,84.895,84.849,10.6128]
[1771359735557,74.46397527,84.895,84.849,10.6128]
[1771359736348,0.24679853,84.894,84.849,10.6128]
[1771359736855,74.22,84.895,84.841,10.6138]
[1771359736856,0.24679853,84.892,84.841,10.6138]
[1771359737659,10.85589853,84.879,84.832,10.6149]
[1771359737861,0.24679853,84.878,84.832,10.6149]
[1771359738261,74.22,84.877,84.832,10.6149]
[1771359738452,0.25914498,84.876,84.831,3.85966605]
[1771359738757,74.22,84.875,84.816,3.85349282]
[1771359738958,74.22,84.874,84.816,3.85349282]
[1771359739161,74.22,84.874,84.834,3.85349282]
[1771359739561,74.22,84.874,84.836,10.6145]
[1771359740159,0.26134805,84.873,84.82,10.6165]
[1771359740359,0.26134805,84.871,84.811,3.85239128]
[1771359741969,0.26134805,84.871,84.825,10.6158]
[1771359742169,0.26134805,84.871,84.811,3.85239128]
[1771359743667,10.6103,84.87,84.821,10.6163]
[1771359744258,10.87314682,84.87,84.821,10.6163]
[1771359744462,0.26284682,84.866,84.814,10.6172]
[1771359744664,5.95262266,84.86,84.814,10.6172]
[1771359745972,0.2625635,84.859,84.811,3.85239128]
[1771359746370,5.95262266,84.86,84.811,3.85239128]
[1771359746770,0.2625635,84.873,84.82,3.85178356]
[1771359747074,74.24,84.872,84.82,3.85178356]
[1771359747276,9.89102754,84.871,84.82,3.85178356]
[1771359747487,74.24,84.872,84.82,3.85178356]
[1771359747488,9.89103175,84.87,84.82,3.85178356]
[1771359747775,9.89103175,84.869,84.82,3.85178356]
[1771359748072,0.26798351,84.867,84.79,5.95262266]
[1771359748276,0.26798351,84.865,84.791,3.84907356]
[1771359748573,0.26798351,84.863,84.791,3.84907356]
[1771359749774,10.6113,84.862,84.814,10.6172]
[1771359750476,10.87563626,84.862,84.814,10.6172]
[1771359750675,0.26433626,84.862,84.821,10.6163]
[1771359750870,74.24,84.861,84.821,10.6163]
[1771359751171,0.26433626,84.862,84.821,10.6163]
[1771359751376,74.24,84.861,84.821,10.6163]
[1771359752175,0.26657473,84.86,84.821,10.6163]
[1771359754678,0.26657473,84.86,84.809,3.84907356]
[1771359755673,0.26657473,84.86,84.827,10.6156]
[1771359755873,5.95262266,84.87,84.828,3.83998152]
[1771359756184,0.28616759,84.888,84.837,3.83998152]
[1771359756382,0.28616759,84.886,84.837,3.83998152]
[1771359756979,0.28616759,84.886,84.836,10.6144]
[1771359756980,0.28616759,84.869,84.829,10.6153]
[1771359757479,0.28616759,84.869,84.822,3.83998152]
[1771359758381,0.25878572,84.867,84.805,3.85367245]
[1771359759684,0.25878572,84.857,84.805,3.85367245]
[1771359759873,0.25878572,84.856,84.805,3.85367245]
[1771359760079,74.24,84.857,84.812,3.85813076]
[1771359760581,74.24,84.862,84.812,3.85813076]
[1771359760783,74.24,84.869,84.834,3.85813076]
[1771359761182,0.2498691,84.889,84.834,3.85813076]
[1771359761388,10.6091,84.88,84.837,3.85813076]
[1771359761586,74.24,84.888,84.837,3.85813076]
[1771359761783,0.2498691,84.88,84.837,3.85813076]
[1771359762489,10.6101,84.872,84.825,10.6158]
[1771359762683,74.24,84.871,84.825,10.6158]
[1771359763989,0.19705367,84.87,84.825,10.6158]
[1771359764184,0.19705367,84.869,84.811,3.88453848]
[1771359764393,0.19506624,84.856,84.811,3.88453848]
[1771359765085,10.6121,84.855,84.811,3.88453848]
[1771359765585,74.24,84.854,84.811,3.88453848]
[1771359767984,0.15023587,84.853,84.811,3.88453848]
[1771359768691,10.6135,84.844,84.811,3.88453848]
[1771359770593,10.6146,84.836,84.761,3.96787182]
[1771359770791,0.14506448,84.835,84.761,3.96787182]
[1771359771188,5.95262266,84.83,84.781,3.96787182]
[1771359771781,10.6155,84.829,84.784,3.96787182]
[1771359772485,0.34427035,84.825,84.769,3.96787182]
[1771359773691,10.6172,84.815,84.769,3.96787182]
[1771359774395,0.35299122,84.805,84.754,3.81043259]
[1771359774591,74.24,84.804,84.754,3.81043259]
[1771359775293,74.24,84.803,84.754,3.81043259]
[1771359775695,74.24,84.803,84.763,10.6236]
[1771359776094,74.24,84.803,84.764,3.81033006]
[1771359776297,74.24,84.806,84.764,3.81033006]
[1771359777200,74.24,84.805,84.769,3.81033006]
[1771359777597,5.95262266,84.81,84.769,3.81033006]
[1771359778302,74.24,84.809,84.769,3.81033006]
[1771359778601,0.2201571,84.808,84.769,3.81033006]
[1771359778795,0.2201571,84.808,84.755,3.87684965]
[1771359778996,0.2201571,84.808,84.741,3.87684965]
[1771359780193,0.2201571,84.808,84.743,3.87471517]
[1771359780398,5.95262266,84.81,84.743,3.87471517]
[1771359780399,0.22442606,84.806,84.743,3.87471517]
[1771359780797,74.24,84.805,84.743,3.87471517]
[1771359781095,0.22442606,84.804,84.758,3.87471517]
[1771359781402,0.22442606,84.804,84.743,3.87471517]
[1771359781996,2.00471364,84.78,84.743,3.87471517]
[1771359782392,74.24,84.785,84.743,3.87471517]
[1771359782700,2.00471364,84.78,84.743,3.87471517]
[1771359782893,76.24471364,84.78,84.743,3.87471517]
[1771359783297,74.24,84.78,84.743,3.87471517]
[1771359784499,74.24,84.782,84.744,14.42123891]
[1771359784990,74.24,84.782,84.744,3.79533891]
[1771359785303,2.00471364,84.81,84.751,3.79533891]
[1771359785599,2.00471364,84.81,84.722,21.2575]
[1771359785600,74.24,84.809,84.761,3.79533891]
[1771359785797,74.24,84.809,84.763,3.79533891]
[1771359787298,12.62371364,84.8,84.763,3.79533891]
[1771359787598,2.00471364,84.8,84.763,3.79533891]
[1771359787795,12.62371364,84.8,84.763,3.79533891]
[1771359788101,2.00471364,84.8,84.763,3.79533891]
[1771359788694,10.6199,84.793,84.763,3.79533891]
[1771359789100,10.6199,84.793,84.751,10.6251]
[1771359789299,2.00471364,84.79,84.745,3.76207351]
[1771359789501,0.44970938,84.787,84.745,3.76207351]
[1771359789702,74.24,84.786,84.745,3.76207351]
[1771359790497,74.24,84.786,84.747,14.38690891]
[1771359790699,74.24,84.786,84.748,3.76130891]
[1771359791504,74.24,84.786,84.75,3.76130891]
[1771359792404,74.24,84.786,84.751,3.76140029]
[1771359796903,74.24,84.786,84.752,3.83822226]
[1771359797098,2.00455042,84.81,84.76,2.00455042]
[1771359797304,74.24,84.809,84.76,2.00455042]
[1771359797603,74.24,84.809,84.77,2.00455042]
[1771359798908,11.06191314,84.814,84.77,2.00455042]
[1771359799109,74.24,84.813,84.77,2.00455042]
[1771359799406,11.06191314,84.814,84.77,2.00455042]
[1771359799607,74.24,84.813,84.77,2.00455042]
[1771359799802,10.6176,84.812,84.77,2.00455042]
[1771359800010,74.24,84.811,84.77,2.00455042]
[1771359800212,2.00455042,84.81,84.767,10.623]
[1771359801212,0.44461314,84.814,84.77,2.00455042]
[1771359801413,0.44461314,84.814,84.76,2.00455042]
[1771359801611,2.00455042,84.82,84.752,3.83822226]
[1771359801612,74.24,84.819,84.77,2.00455042]
[1771359802205,33.30265767,84.827,84.78,2.00455042]
[1771359802516,107.53773018,84.841,84.8,2.00455042]
[1771359802919,33.29773018,84.841,84.806,10.6182]
[1771359803117,33.29773018,84.847,84.8,2.00455042]
[1771359804720,43.91093018,84.847,84.8,2.00455042]
[1771359804920,33.29489458,84.846,84.8,2.00455042]
[1771359805718,74.26,84.855,84.81,2.00455042]
[1771359805922,107.55470369,84.855,84.81,2.00455042]
[1771359806219,33.29470369,84.854,84.81,2.00455042]
[1771359806421,33.29470369,84.854,84.8,2.00455042]
[1771359807316,33.29470369,84.852,84.81,2.00455042]
[1771359808720,33.19359759,84.849,84.804,10.6184]
[1771359808923,33.19359759,84.847,84.804,10.6184]
[1771359809216,33.19359759,84.839,84.796,10.6194]
[1771359810319,33.19568289,84.837,84.8,2.00455042]
[1771359811526,33.19568289,84.837,84.801,10.6188]
[1771359812125,33.19776741,84.829,84.79,2.00455042]
[1771359812325,33.19776741,84.829,84.78,2.00455042]
[1771359812526,33.19776741,84.827,84.78,2.00455042]
[1771359812725,33.19776741,84.819,84.775,10.6221]
[1771359814125,33.19776741,84.819,84.78,2.00455042]
[1771359814325,33.19364561,84.817,84.78,2.00455042]
[1771359819428,33.19364561,84.817,84.775,10.6221]
[1771359819625,33.19364561,84.817,84.76,2.00455042]
[1771359819831,33.17817762,84.815,84.76,2.00455042]
[1771359820334,33.17827416,84.805,84.761,10.6238]
[1771359820533,107.43827416,84.804,84.761,10.6238]
[1771359821931,33.17862507,84.803,84.761,10.6238]
[1771359823133,33.17862507,84.803,84.77,2.00455042]
[1771359824732,33.17862507,84.803,84.761,10.6238]
[1771359825735,33.17862507,84.803,84.754,10.6247]
[1771359825932,33.12181322,84.801,84.754,10.6247]
[1771359826134,33.12181322,84.789,84.74,2.00455042]
[1771359826327,2.00455042,84.78,84.73,10.6277]
[1771359826537,74.26,84.779,84.74,2.00455042]
[1771359827534,33.12181322,84.791,84.75,2.00455042]
[1771359827731,74.26,84.794,84.76,2.00455042]
[1771359827932,74.26,84.794,84.75,2.00455042]
[1771359828137,74.26,84.794,84.76,2.00455042]
[1771359829334,33.12181322,84.797,84.76,2.00455042]
[1771359830436,33.12181322,84.797,84.75,12.62975042]
[1771359831144,33.12181322,84.797,84.756,10.6244]
[1771359832144,33.12181322,84.797,84.751,10.6251]
[1771359833136,2.00455042,84.81,84.76,2.00455042]
[1771359833343,33.12550063,84.8,84.75,2.00455042]
[1771359833943,33.12550063,84.8,84.761,10.6238]
[1771359834244,35.13005105,84.8,84.74,2.00455042]
[1771359834645,35.13005105,84.8,84.75,2.00455042]
[1771359835739,35.13005105,84.8,84.754,10.6247]
[1771359840051,33.12647194,84.798,84.75,2.00455042]
[1771359840949,33.12647194,84.789,84.752,10.625]
[1771359841451,33.12647194,84.789,84.744,10.626]
[1771359841848,33.12647194,84.779,84.73,2.00455042]
[1771359842049,33.12587211,84.769,84.72,2.00455042]
[1771359842255,33.12587211,84.767,84.72,2.00455042]
[1771359842955,33.12587211,84.759,84.722,10.6287]
[1771359844854,33.12587211,84.759,84.715,10.6296]
[1771359845254,33.12587211,84.759,84.72,2.00455042]
[1771359846053,33.12587211,84.759,84.71,76.26455042]
[1771359846860,33.16643188,84.757,84.71,76.26455042]
[1771359847059,33.16643188,84.749,84.705,10.6308]
[1771359847548,33.16643188,84.747,84.705,10.6308]
[1771359848057,74.26,84.746,84.712,10.63]
[1771359848356,33.16643188,84.747,84.712,10.63]
[1771359850057,33.16643188,84.747,84.71,2.00455042]
[1771359850758,33.16643188,84.747,84.692,74.26]
[1771359850759,33.16643188,84.747,84.7,2.00455042]
[1771359851261,33.16643188,84.747,84.708,10.6305]
[1771359851559,33.2216931,84.746,84.708,10.6305]
[1771359852860,33.2216931,84.746,84.714,10.6297]
[1771359853259,33.2216931,84.746,84.7,2.00455042]
[1771359854366,33.2305895,84.744,84.7,2.00455042]
[1771359854559,74.26,84.745,84.697,10.6318]
[1771359854560,33.2305895,84.729,84.697,10.6318]
[1771359855466,33.2305895,84.729,84.686,10.6332]
[1771359855668,33.23056593,84.719,84.686,10.6332]
[1771359855866,33.23056593,84.719,84.67,2.00759902]
[1771359857258,33.23797077,84.709,84.665,74.26]
[1771359857464,33.23797077,84.709,84.628,56.661]
[1771359857465,33.23797077,84.699,84.649,74.26]
[1771359857664,33.23797077,84.699,84.663,10.6361]
[1771359858668,33.23797077,84.699,84.655,10.6371]
[1771359859065,33.23797077,84.699,84.65,2.00759902]
[1771359859268,107.49797077,84.699,84.65,2.00759902]
[1771359859563,33.21016576,84.698,84.65,2.00759902]
[1771359860565,35.22653392,84.69,84.653,10.6374]
[1771359860766,33.2189349,84.69,84.653,10.6374]
[1771359861065,2.00759902,84.7,84.65,2.00759902]
[1771359861268,35.22653392,84.7,84.65,2.00759902]
[1771359861670,35.22653392,84.7,84.658,10.6367]
[1771359862369,33.2050886,84.698,84.658,10.6367]
[1771359864573,33.2050886,84.698,84.66,2.00759902]
[1771359865163,33.2050886,84.698,84.663,10.6361]
[1771359865364,33.20568263,84.711,84.67,2.00759902]
[1771359866474,74.26,84.719,84.67,2.00759902]
[1771359866671,74.26,84.719,84.678,10.6343]
[1771359866969,107.40507955,84.719,84.678,10.6343]
[1771359867270,33.14507955,84.719,84.67,2.00759902]
[1771359868271,33.14507955,84.719,84.677,10.6344]
[1771359870171,33.14507955,84.719,84.687,10.6332]
[1771359870372,33.14507955,84.719,84.68,2.00759902]
[1771359870567,33.14507955,84.719,84.676,74.26]
[1771359871874,33.14507955,84.719,84.68,10.6339]
[1771359872975,33.14507955,84.719,84.689,10.6329]
[1771359873176,33.08674883,84.739,84.69,2.00759902]
[1771359873577,33.08674883,84.739,84.696,10.632]
[1771359875579,33.08674883,84.739,84.703,10.631]
[1771359875978,33.09436541,84.719,84.67,2.00759902]
[1771359876181,33.09280609,84.718,84.671,74.26]
[1771359876572,33.09280609,84.718,84.687,10.633]
[1771359879176,2.00759902,84.74,84.69,2.00759902]
[1771359879379,2.00759902,84.74,84.666,74.26]
[1771359879380,2.00759902,84.73,84.68,2.00759902]
[1771359879581,2.00759902,84.73,84.67,2.00759902]
[1771359879781,2.00759902,84.73,84.68,2.00759902]
[1771359880779,2.00759902,84.73,84.694,10.6323]
[1771359881184,24.14035943,84.729,84.694,10.6323]
[1771359882379,24.14035943,84.729,84.7,10.6314]
[1771359882584,24.14035943,84.729,84.69,2.00759902]
[1771359883082,5.943e-05,84.729,84.69,2.00759902]
[1771359883287,74.26,84.751,84.7,2.00759902]
[1771359883488,74.26,84.756,84.719,10.6291]
[1771359883793,74.26,84.757,84.719,10.6291]
[1771359884690,2.00759902,84.75,84.719,10.6291]
[1771359885394,12.07962689,84.749,84.719,10.6291]
[1771359886501,12.07965498,84.739,84.708,10.6305]
[1771359887798,12.07965498,84.739,84.687,74.26]
[1771359887799,12.07965498,84.739,84.714,10.6297]
[1771359889599,14.08607558,84.75,84.7,2.00759902]
[1771359890398,12.08173808,84.749,84.712,10.6299]
[1771359890598,74.26,84.767,84.72,2.00759902]
[1771359890795,74.26,84.768,84.72,2.00759902]
[1771359891602,2.00759902,84.78,84.73,2.00759902]
[1771359891798,74.28,84.779,84.73,2.00759902]
[1771359892200,2.00759902,84.8,84.75,2.00759902]
[1771359892399,2.00759902,84.79,84.73,74.26]
[1771359892597,6.06848692,84.789,84.747,10.6256]
[1771359893398,6.06848692,84.789,84.754,10.6247]
[1771359894105,6.05742757,84.802,84.763,10.6236]
[1771359895907,6.05742757,84.802,84.76,2.00759902]
[1771359896107,6.05742757,84.802,84.755,10.6246]
[1771359896909,6.05742757,84.802,84.762,10.6237]
[1771359897109,6.05742757,84.802,84.75,2.00759902]
[1771359897304,6.05742757,84.802,84.76,2.00759902]
[1771359898199,6.05742757,84.802,84.739,74.28]
[1771359898405,6.05742757,84.802,84.76,2.00759902]
[1771359898800,6.05742757,84.802,84.761,10.6239]
[1771359900211,6.04999308,84.799,84.761,10.6239]
[1771359900408,6.04999308,84.799,84.753,10.6248]
[1771359900612,6.04999308,84.799,84.75,2.00759902]
[1771359901911,6.04999308,84.799,84.757,10.6243]
[1771359903015,6.03292538,84.809,84.764,10.6235]
[1771359903609,6.03292538,84.822,84.78,2.00759902]
[1771359904806,6.03292538,84.822,84.788,10.6205]
[1771359905719,6.03292538,84.822,84.794,10.6197]
[1771359906721,6.04146815,84.819,84.77,2.00759902]
[1771359907517,6.04146815,84.832,84.79,2.00759902]
[1771359908717,6.04146815,84.832,84.793,10.6198]
[1771359908919,6.04146815,84.832,84.79,2.00759902]
[1771359909121,2.00759902,84.84,84.79,2.00759902]
[1771359909319,6.02425156,84.846,84.8,2.00759902]
[1771359909521,6.02425156,84.839,84.79,2.00759902]
[1771359910823,6.02425156,84.839,84.802,10.6186]
[1771359911618,6.02425156,84.839,84.809,10.6178]
[1771359912319,2.00759902,84.85,84.8,2.00759902]
[1771359912510,2.00759902,84.85,84.751,200.6589]
[1771359912511,6.02172771,84.852,84.81,2.00759902]
[1771359913115,6.02172771,84.852,84.818,10.6167]
[1771359913318,2.00759902,84.86,84.82,2.00759902]
[1771359913522,6.02172771,84.865,84.82,2.00759902]
[1771359913719,6.02172771,84.859,84.81,2.00759902]
[1771359914717,6.02172771,84.859,84.822,10.6162]
[1771359915921,6.02172771,84.859,84.829,10.6153]
[1771359916316,6.02172771,84.859,84.82,2.00064504]
[1771359916513,6.02172771,84.859,84.81,2.00064504]
[1771359916818,6.02172771,84.859,84.821,10.6163]
[1771359918221,6.02172771,84.859,84.829,10.6153]
[1771359918723,10.9597387,84.941,84.767,165.2477]
[1771359918724,6.04056391,84.889,84.84,2.00064504]
[1771359919420,6.04056391,84.879,84.83,2.00064504]
[1771359920117,6.04056391,84.879,84.84,2.00064504]
[1771359920517,6.04056391,84.879,84.842,10.6137]
[1771359921321,6.04056391,84.879,84.833,10.6148]
[1771359921515,6.04056391,84.879,84.83,2.00064504]
[1771359923722,6.04056391,84.879,84.84,2.00064504]
[1771359924618,6.04056391,84.879,84.845,10.6133]
[1771359925924,5.99642673,84.894,84.85,2.00064504]
[1771359926117,5.99642673,84.894,84.86,2.00064504]
[1771359926520,74.24,84.927,84.84,2.00064504]
[1771359926521,5.95479799,84.889,84.84,2.00064504]
[1771359928124,5.95479799,84.889,84.85,10.6127]
[1771359928726,5.95479799,84.889,84.842,10.6137]
[1771359930128,5.95479799,84.889,84.85,10.6127]
[1771359930523,5.95479799,84.889,84.84,2.00064504]
[1771359930722,5.95479799,84.889,84.843,10.6135]
[1771359930925,74.24,84.915,84.83,2.00064504]
[1771359931128,74.24,84.915,84.768,21.50386423]
[1771359931129,5.95825624,84.919,84.86,2.00064504]
[1771359931320,2.00064504,84.88,84.84,2.00064504]
[1771359931519,2.00064504,84.88,84.795,35.38]
[1771359931520,5.95825624,84.879,84.83,2.00064504]
[1771359932822,5.95825624,84.879,84.836,10.6145]
[1771359933531,6.06036327,84.869,84.828,10.6155]
[1771359933931,6.06036327,84.869,84.826,74.24]
[1771359934232,6.154897,84.899,84.85,2.00064504]
[1771359935635,6.154897,84.899,84.86,10.6114]
[1771359935830,2.00064504,84.91,84.86,2.00064504]
[1771359936135,6.15132633,84.926,84.88,2.00064504]
[1771359936332,6.15132633,84.919,84.864,74.22]
[1771359936532,6.15132633,84.919,84.87,2.00064504]
[1771359936734,6.15132633,84.909,84.86,2.00064504]
[1771359936931,6.15132633,84.909,84.87,2.00064504]
[1771359937831,6.15132633,84.909,84.877,10.6094]
[1771359939235,6.15132633,84.909,84.86,2.00064504]
[1771359939633,6.15499726,84.899,84.855,74.22]
[1771359940341,6.15499726,84.899,84.86,2.00064504]
[1771359940742,6.15499726,84.899,84.861,10.6113]
[1771359941636,6.15499726,84.899,84.868,10.6104]
[1771359941835,6.1539657,84.913,84.87,2.00064504]
[1771359942238,2.00064504,84.92,84.855,74.22]
[1771359942239,6.19517219,84.909,84.861,10.6114]
[1771359942837,6.19517219,84.909,84.86,2.00064504]
[1771359942838,6.19517219,84.909,84.868,10.6105]
[1771359946535,6.19517219,84.909,84.874,10.6096]
[1771359946938,2.00064504,84.89,84.855,74.22]
[1771359947142,6.17386243,84.889,84.84,2.00064504]
[1771359947848,6.17386243,84.889,84.856,10.612]
[1771359948446,6.16444319,84.879,84.84,10.6139]
[1771359949848,6.16444319,84.879,84.832,10.6149]
[1771359950054,6.1654652,84.869,84.832,10.6149]
[1771359950847,6.1654652,84.869,84.782,33.30386423]
[1771359950848,6.1654652,84.859,84.822,10.6161]
[1771359951358,6.1654652,84.859,84.811,10.6176]
[1771359951956,6.13947318,84.849,84.802,10.6187]
[1771359952657,6.13947318,84.839,84.8,74.22]
[1771359952961,6.13947318,84.839,84.79,2.00064504]
[1771359953658,6.13947318,84.839,84.784,74.22]
[1771359953953,6.13947318,84.839,84.8,2.00064504]
[1771359954155,2.00064504,84.85,84.8,2.00064504]
[1771359954855,6.09460071,84.854,84.81,2.00064504]
[1771359955457,6.09460071,84.854,84.82,2.00064504]
[1771359955655,6.09460071,84.854,84.815,10.617]
[1771359957156,6.11633881,84.868,84.82,2.00064504]
[1771359958259,6.11633881,84.868,84.821,74.24]
[1771359958462,6.11633881,84.868,84.822,74.24]
[1771359958661,6.11633881,84.868,84.828,10.6154]
[1771359963065,6.11633881,84.868,84.835,10.6145]
[1771359963265,12.60964504,84.88,84.835,10.6145]
[1771359963471,6.12648319,84.881,84.84,2.00064504]
[1771359964958,6.04971459,84.879,84.84,2.00064504]
[1771359965161,6.04971459,84.869,84.82,2.00064504]
[1771359965363,2.00064504,84.87,84.734,165.3129]
[1771359965364,6.04971459,84.859,84.821,74.24]
[1771359966368,6.01747223,84.858,84.821,74.24]
[1771359967673,6.01747223,84.855,84.821,74.24]
[1771359969673,6.01827991,84.849,84.821,74.24]
[1771359970074,6.01827991,84.849,84.8,2.00064504]
[1771359970075,6.01827991,84.849,84.808,74.24]
[1771359972171,6.0223443,84.881,84.84,2.00064504]
[1771359972770,16.6295443,84.895,84.85,2.00064504]
[1771359973174,6.0223443,84.895,84.841,10.6137]
[1771359973375,6.0223443,84.895,84.85,2.00064504]
[1771359973972,6.0223443,84.895,84.844,74.24]
[1771359976379,6.03427751,84.893,84.844,74.24]
[1771359976580,6.03427751,84.893,84.845,10.6133]
[1771359976877,6.03427751,84.893,84.8,5.95094935]
[1771359976878,6.03427751,84.885,84.81,5.95094935]
[1771359977073,6.03427751,84.885,84.823,10.616]
[1771359977274,6.03427751,84.885,84.811,74.24]
[1771359977473,6.03427751,84.869,84.811,74.24]
[1771359978876,6.04101498,84.866,84.811,74.24]
[1771359979778,10.612,84.856,84.811,74.24]
[1771359979979,6.04101498,84.866,84.811,74.24]
[1771359980683,6.04101498,84.866,84.787,21.50386423]
[1771359980684,6.04101498,84.866,84.81,5.95094935]
[1771359980882,6.04101498,84.866,84.811,74.24]
[1771359981284,6.04101498,84.866,84.81,5.95094935]
[1771359981479,6.04101498,84.866,84.811,74.24]
[1771359981678,6.04101498,84.866,84.813,10.6173]
[1771359982082,6.04101498,84.866,84.811,74.24]
[1771359982583,5.95094935,84.89,84.811,74.24]
[1771359982584,6.04416457,84.865,84.811,74.24]
[1771359983382,6.04416457,84.865,84.812,74.24]
[1771359983775,16.65556457,84.861,84.812,74.24]
[1771359984077,6.04416457,84.86,84.812,74.24]
[1771359985385,6.0460219,84.857,84.812,74.24]
[1771359993383,16.66318822,84.854,84.812,74.24]
[1771359993992,5.95094935,84.9,84.812,74.24]
[1771359993993,6.05088822,84.868,84.83,2.00091199]
[1771359994187,10.6093,84.878,84.83,2.00091199]
[1771359994691,16.65074991,84.878,84.83,2.00091199]